[Event "Paracin Open 2022"]
[Site "Paracin"]
[Date "2022.07.16"]
[Round "9.18"]
[White "Aakash Sharadchandra, Dalvi"]
[Black "Amartuvshin, Ganzorig"]
[Result "1/2-1/2"]
[ECO "E11"]
[WhiteElo "2110"]
[BlackElo "2409"]
[Annotator "ChessBase"]
[PlyCount "191"]
[EventDate "2022.07.08"]
[EventCountry "SRB"]
[SourceTitle "playchess.com"]
[Source "ChessBase"]
[SourceQuality "1"]
[TimeControl "5400+30"]

1. d4 {[%emt 0:07:04]} Nf6 {[%emt 0:00:05]} 2. c4 {[%emt 0:00:04]} e6 {[%emt 0:01:00]} 3. Nf3 {[%emt 0:00:06]} Bb4+ {[%emt 0:00:10]} 4. Bd2 {[%emt 0:00:06]} Qe7 {[%emt 0:00:08]} 5. Nc3 {[%emt 0:00:05]} Bxc3 {[%emt 0:00:32]} 6. Bxc3 {[%emt 0:00:08]} Ne4 {[%emt 0:00:12]} 7. Qc2 {[%emt 0:01:14]} Nxc3 {[%emt 0:00:10]} 8. Qxc3 {[%emt 0:00:05]} O-O {[%emt 0:00:38]} 9. e4 {[%emt 0:08:18]} b6 {[%emt 0:04:49]} 10. Bd3 {[%emt 0:00:58]} Bb7 {[%emt 0:00:49]} 11. O-O {[%emt 0:00:29]} d6 {[%emt 0:00:17]} 12. b4 {[%emt 0:05:30]} Nd7 {[%emt 0:00:41]} 13. Rab1 {[%emt 0:04:02]} e5 {[%emt 0:00:52]} 14. d5 {[%emt 0:02:33]} c5 {[%emt 0:12:59]} 15. dxc6 {[%emt 0:11:13]} Bxc6 {[%emt 0:00:41]} 16. Rfe1 {[%emt 0:08:52]} g6 {[%emt 0:03:59]} 17. Rbd1 {[%emt 0:02:09]} Rfd8 {[%emt 0:02:47]} 18. Bc2 {[%emt 0:03:58]} Rac8 {[%emt 0:00:42]} 19. Qd3 {[%emt 0:00:25]} Nf8 {[%emt 0:00:19]} 20. Bb3 {[%emt 0:01:26]} Ne6 {[%emt 0:00:53]} 21. Qe3 {[%emt 0:01:40]} Bb7 {[%emt 0:01:19]} 22. a3 {[%emt 0:04:25]} Kg7 {[%emt 0:01:02]} 23. Rd2 {[%emt 0:02:39]} Ba6 {[%emt 0:02:37]} 24. Rc2 {[%emt 0:01:03]} Qf6 {[%emt 0:07:16]} 25. g3 {[%emt 0:05:33]} h6 {[%emt 0:09:32]} 26. Rec1 {[%emt 0:02:13]} Rc7 {[%emt 0:03:28]} 27. Rd1 {[%emt 0:02:50]} Bc8 {[%emt 0:09:31]} 28. Rcd2 {[%emt 0:01:17]} Nf8 {[%emt 0:03:26]} 29. Ne1 {[%emt 0:01:53]} Bg4 {[%emt 0:01:15]} 30. f3 {[%emt 0:02:59]} Bc8 {[%emt 0:00:35]} 31. c5 {[%emt 0:04:16]} bxc5 {[%emt 0:01:08]} 32. bxc5 {[%emt 0:00:07]} Rxc5 {[%emt 0:00:05]} 33. Rxd6 {[%emt 0:00:27]} Rxd6 {[%emt 0:00:30]} 34. Qxc5 {[%emt 0:00:06]} Rxd1 {[%emt 0:07:47]} 35. Bxd1 {[%emt 0:00:03]} Ba6 {[%emt 0:04:40]} 36. Bb3 {[%emt 0:03:25]} Nd7 {[%emt 0:00:31]} 37. Qxa7 {[%emt 0:03:01]} Qd6 {[%emt 0:00:14]} 38. Bd5 {[%emt 0:00:16]} Qxa3 {[%emt 0:00:38]} 39. Bc4 {[%emt 0:05:27]} Qb4 {[%emt 0:00:48]} 40. Bxa6 {[%emt 0:00:52]} Qxe1+ {[%emt 0:00:06]} 41. Kg2 {[%emt 0:00:44]} Qd2+ {[%emt 0:00:02]} 42. Qf2 {[%emt 0:00:15]} Qc3 {[%emt 0:00:11]} 43. Qa2 {[%emt 0:00:43]} Nb6 {[%emt 0:00:31]} 44. Bb5 {[%emt 0:00:32]} g5 {[%emt 0:00:33]} 45. Qf2 {[%emt 0:01:02]} Nc8 {[%emt 0:00:45]} 46. Qe2 {[%emt 0:00:23]} Nd6 {[%emt 0:00:10]} 47. Bd3 {[%emt 0:00:13]} Qd4 {[%emt 0:00:22]} 48. Kf1 {[%emt 0:01:00]} h5 {[%emt 0:00:23]} 49. Kg2 {[%emt 0:00:04]} Kf8 {[%emt 0:00:15]} 50. Kf1 {[%emt 0:03:22]} g4 {[%emt 0:00:40]} 51. fxg4 {[%emt 0:00:48]} hxg4 {[%emt 0:00:06]} 52. Kg2 {[%emt 0:00:09]} f5 {[%emt 0:00:13]} 53. exf5 {[%emt 0:00:18]} e4 {[%emt 0:00:08]} 54. Bc2 {[%emt 0:02:24]} Qd5 {[%emt 0:09:47]} 55. h3 {[%emt 0:00:44]} e3+ {[%emt 0:03:13]} 56. Kh2 {[%emt 0:00:05]} gxh3 {[%emt 0:00:14]} 57. Kxh3 {[%emt 0:00:28]} Nc4 {[%emt 0:00:36]} 58. Kh2 {[%emt 0:01:38]} Nd2 {[%emt 0:00:34]} 59. Bd1 {[%emt 0:00:52]} Qxf5 {[%emt 0:00:13]} 60. Kg1 {[%emt 0:00:28]} Qc5 {[%emt 0:00:18]} 61. Kg2 {[%emt 0:00:20]} Qd5+ {[%emt 0:00:14]} 62. Kg1 {[%emt 0:00:06]} Qd4 {[%emt 0:00:29]} 63. Kg2 {[%emt 0:00:11]} Ke7 {[%emt 0:00:26]} 64. Kg1 {[%emt 0:00:57]} Ne4 {[%emt 0:00:11]} 65. Bb3 {[%emt 0:00:59]} Nxg3 {[%emt 0:02:36]} 66. Qc4 {[%emt 0:00:05]} Qe5 {[%emt 0:02:34]} 67. Qb4+ {[%emt 0:00:17]} Ke8 {[%emt 0:00:53]} 68. Ba4+ {[%emt 0:00:33]} Kd8 {[%emt 0:00:16]} 69. Qh4+ {[%emt 0:00:26]} Kc7 {[%emt 0:00:19]} 70. Qc4+ {[%emt 0:00:05]} Kb6 {[%emt 0:00:20]} 71. Qb4+ {[%emt 0:01:35]} Ka6 {[%emt 0:00:16]} 72. Bb5+ {[%emt 0:00:29]} Qxb5 {[%emt 0:00:37]} 73. Qa3+ {[%emt 0:00:54]} Kb7 {[%emt 0:00:19]} 74. Qxe3 {[%emt 0:00:19]} Nf5 {[%emt 0:00:05]} 75. Qe4+ {[%emt 0:00:08]} Kc7 {[%emt 0:00:05]} 76. Kh2 {[%emt 0:00:26]} Kd6 {[%emt 0:00:18]} 77. Kg1 {[%emt 0:00:06]} Qb6+ {[%emt 0:00:08]} 78. Kg2 {[%emt 0:00:39]} Qb2+ {[%emt 0:00:07]} 79. Kg1 {[%emt 0:00:10]} Nd4 {[%emt 0:00:16]} 80. Qe3 {[%emt 0:00:33]} Kd5 {[%emt 0:00:10]} 81. Kh1 {[%emt 0:00:17]} Kc4 {[%emt 0:00:07]} 82. Kg1 {[%emt 0:00:07]} Qc2 {[%emt 0:00:22]} 83. Kh1 {[%emt 0:00:38]} Qg6 {[%emt 0:00:06]} 84. Kh2 {[%emt 0:00:28]} Qg4 {[%emt 0:00:09]} 85. Qg3 {[%emt 0:00:31]} Qe4 {[%emt 0:00:07]} 86. Qg2 {[%emt 0:01:21]} Qe3 {[%emt 0:00:11]} 87. Qg3 {[%emt 0:00:43]} Qe2+ {[%emt 0:00:16]} 88. Qg2 {[%emt 0:00:25]} Qh5+ {[%emt 0:00:12]} 89. Qh3 {[%emt 0:00:18]} Qd1 {[%emt 0:00:05]} 90. Qe3 {[%emt 0:00:36]} Qf1 {[%emt 0:00:08]} 91. Qh3 {[%emt 0:00:50]} Qf2+ {[%emt 0:00:11]} 92. Kh1 {[%emt 0:00:19]} Qe2 {[%emt 0:00:15]} 93. Qg2 {[%emt 0:00:20]} Qh5+ {[%emt 0:00:16]} 94. Qh2 {[%emt 0:00:30]} Qd1+ {[%emt 0:00:20]} 95. Qg1 {[%emt 0:00:07]} Qxg1+ {[%emt 0:00:03]} 96. Kxg1 {[%emt 0:02:13]} 1/2-1/2

[Event "Paracin Open 2022"]
[Site "Paracin"]
[Date "2022.07.16"]
[Round "9.19"]
[White "Sapenov, Daniyal"]
[Black "Panda Sambit"]
[Result "1/2-1/2"]
[ECO "D30"]
[WhiteElo "2362"]
[BlackElo "2123"]
[Annotator "ChessBase"]
[PlyCount "62"]
[EventDate "2022.07.08"]
[EventCountry "SRB"]
[SourceTitle "playchess.com"]
[Source "ChessBase"]
[SourceQuality "1"]
[TimeControl "5400+30"]

1. d4 {[%emt 0:00:02]} d5 {[%emt 0:04:10]} 2. c4 {[%emt 0:00:08]} e6 {[%emt 0:00:07]} 3. Nf3 {[%emt 0:00:05]} a6 {[%emt 0:00:05]} 4. g3 {[%emt 0:00:05]} dxc4 {[%emt 0:00:05]} 5. Bg2 {[%emt 0:00:05]} c5 {[%emt 0:00:11]} 6. O-O {[%emt 0:00:46]} cxd4 {[%emt 0:00:17]} 7. Nbd2 {[%emt 0:01:27]} b5 {[%emt 0:21:07]} 8. Nxd4 {[%emt 0:19:04]} Ra7 {[%emt 0:00:33]} 9. N2f3 {[%emt 0:00:07]} Rd7 {[%emt 0:15:57]} 10. Qc2 {[%emt 0:08:02]} Nf6 {[%emt 0:06:24]} 11. a4 {[%emt 0:04:21]} Bc5 {[%emt 0:07:12]} 12. e3 {[%emt 0:06:17]} Bb7 {[%emt 0:06:13]} 13. axb5 {[%emt 0:02:36]} Bxd4 {[%emt 0:00:49]} 14. Nxd4 {[%emt 0:04:24]} Bxg2 {[%emt 0:03:29]} 15. Kxg2 {[%emt 0:00:07]} axb5 {[%emt 0:03:02]} 16. Nxb5 {[%emt 0:00:39]} Qc8 {[%emt 0:00:30]} 17. Na3 {[%emt 0:00:49]} Rc7 {[%emt 0:02:40]} 18. e4 {[%emt 0:02:12]} O-O {[%emt 0:15:17]} 19. Bf4 {[%emt 0:08:31]} Rc6 {[%emt 0:00:07]} 20. Rfc1 {[%emt 0:01:03]} Qb7 {[%emt 0:00:58]} 21. f3 {[%emt 0:02:53]} Rfc8 {[%emt 0:00:23]} 22. Qe2 {[%emt 0:00:32]} c3 {[%emt 0:04:13]} 23. bxc3 {[%emt 0:01:08]} Rxc3 {[%emt 0:03:45]} 24. Rab1 {[%emt 0:04:25]} Qa6 {[%emt 0:01:31]} 25. Qxa6 {[%emt 0:04:58]} Nxa6 {[%emt 0:00:01]} 26. Rxc3 {[%emt 0:00:12]} Rxc3 {[%emt 0:00:01]} 27. Nb5 {[%emt 0:00:36]} Rc2+ {[%emt 0:00:17]} 28. Kg1 {[%emt 0:01:34]} h6 {[%emt 0:00:58]} 29. Nd6 {[%emt 0:00:44]} g5 {[%emt 0:03:50]} 30. Be3 {[%emt 0:01:18]} Nd7 {[%emt 0:00:33]} 31. Rc1 {[%emt 0:01:19]} Rxc1+ {[%emt 0:00:12]} 1/2-1/2

[Event "Paracin Open 2022"]
[Site "Paracin"]
[Date "2022.07.16"]
[Round "9.20"]
[White "Taspinar, Yanki"]
[Black "Kairbekova, Amina"]
[Result "0-1"]
[ECO "A62"]
[WhiteElo "2311"]
[BlackElo "2133"]
[Annotator "ChessBase"]
[PlyCount "126"]
[EventDate "2022.07.08"]
[EventCountry "SRB"]
[SourceTitle "playchess.com"]
[Source "ChessBase"]
[SourceQuality "1"]
[TimeControl "5400+30"]

1. d4 {[%emt 0:00:32]} Nf6 {[%emt 0:00:37]} 2. c4 {[%emt 0:00:05]} c5 {[%emt 0:00:13]} 3. d5 {[%emt 0:01:29]} e6 {[%emt 0:00:19]} 4. Nc3 {[%emt 0:00:20]} d6 {[%emt 0:00:23]} 5. Nf3 {[%emt 0:02:50]} g6 {[%emt 0:00:09]} 6. g3 {[%emt 0:05:41]} Bg7 {[%emt 0:00:23]} 7. Bg2 {[%emt 0:00:06]} O-O {[%emt 0:00:06]} 8. O-O {[%emt 0:00:05]} Re8 {[%emt 0:00:03]} 9. Re1 {[%emt 0:14:47]} exd5 {[%emt 0:02:35]} 10. cxd5 {[%emt 0:00:14]} Ne4 {[%emt 0:01:21]} 11. Nxe4 {[%emt 0:05:08]} Rxe4 {[%emt 0:00:09]} 12. Nd2 {[%emt 0:02:31]} Re8 {[%emt 0:04:38]} 13. a4 {[%emt 0:01:42]} Nd7 {[%emt 0:00:16]} 14. Qc2 {[%emt 0:15:41]} f5 {[%emt 0:03:09]} 15. Rb1 {[%emt 0:05:19]} a5 {[%emt 0:14:54]} 16. b3 {[%emt 0:04:39]} Nf6 {[%emt 0:07:13]} 17. Nc4 {[%emt 0:06:19]} Ra6 {[%emt 0:00:19]} 18. Bb2 {[%emt 0:05:01]} Bd7 {[%emt 0:02:03]} 19. Qd3 {[%emt 0:01:45]} Re7 {[%emt 0:04:26]} 20. e3 {[%emt 0:02:59]} Qe8 {[%emt 0:04:23]} 21. Bc3 {[%emt 0:07:08]} Ne4 {[%emt 0:07:09]} 22. Bxg7 {[%emt 0:03:55]} Kxg7 {[%emt 0:00:06]} 23. Nxa5 {[%emt 0:04:16]} Rxa5 {[%emt 0:03:10]} 24. Bxe4 {[%emt 0:00:05]} fxe4 {[%emt 0:00:33]} 25. Qc3+ {[%emt 0:00:05]} Kg8 {[%emt 0:00:03]} 26. Qxa5 {[%emt 0:00:09]} Bh3 {[%emt 0:00:50]} 27. Rb2 {[%emt 0:08:02]} Re5 {[%emt 0:08:37]} 28. Qb5 {[%emt 0:01:59]} Qf7 {[%emt 0:00:35]} 29. f4 {[%emt 0:01:01]} exf3 {[%emt 0:00:06]} 30. e4 {[%emt 0:00:33]} Qe7 {[%emt 0:08:43]} 31. Qd3 {[%emt 0:00:32]} Bf5 {[%emt 0:00:08]} 32. Qxf3 {[%emt 0:00:40]} Bxe4 {[%emt 0:00:05]} 33. Qf4 {[%emt 0:00:41]} g5 {[%emt 0:00:29]} 34. Qf2 {[%emt 0:00:32]} Rxd5 {[%emt 0:02:05]} 35. Rbe2 {[%emt 0:00:31]} Re5 {[%emt 0:00:11]} 36. g4 {[%emt 0:00:31]} d5 {[%emt 0:00:40]} 37. Qg3 {[%emt 0:00:24]} d4 {[%emt 0:04:34]} 38. Rf2 {[%emt 0:00:25]} d3 {[%emt 0:01:26]} 39. Qe3 {[%emt 0:00:41]} Re6 {[%emt 0:02:34]} 40. Ref1 {[%emt 0:00:28]} Bg6 {[%emt 0:00:06]} 41. Qd2 {[%emt 0:00:34]} Re4 {[%emt 0:00:45]} 42. Rg2 {[%emt 0:00:32]} Qe5 {[%emt 0:00:54]} 43. Qf2 {[%emt 0:00:29]} Rf4 {[%emt 0:00:12]} 44. Re1 {[%emt 0:00:31]} Rxf2 {[%emt 0:00:52]} 45. Rxe5 {[%emt 0:00:04]} d2 {[%emt 0:00:02]} 46. Kxf2 {[%emt 0:00:53]} d1=Q {[%emt 0:00:08]} 47. Rg3 {[%emt 0:00:04]} Qd2+ {[%emt 0:00:47]} 48. Re2 {[%emt 0:00:06]} Qd4+ {[%emt 0:00:34]} 49. Rge3 {[%emt 0:00:04]} Qxg4 {[%emt 0:00:39]} 50. Re7 {[%emt 0:00:10]} Qd4+ {[%emt 0:00:29]} 51. Ke1 {[%emt 0:00:09]} Qc3+ {[%emt 0:00:18]} 52. Kf2 {[%emt 0:00:05]} Qxb3 {[%emt 0:00:26]} 53. Rd2 {[%emt 0:00:06]} Qb6 {[%emt 0:03:01]} 54. Rdd7 {[%emt 0:00:13]} c4+ {[%emt 0:00:22]} 55. Ke1 {[%emt 0:00:15]} c3 {[%emt 0:00:44]} 56. Rxb7 {[%emt 0:00:07]} Qg1+ {[%emt 0:00:20]} 57. Ke2 {[%emt 0:00:01]} Qxh2+ {[%emt 0:00:15]} 58. Ke3 {[%emt 0:00:10]} c2 {[%emt 0:02:32]} 59. Rec7 {[%emt 0:00:19]} Qe5+ {[%emt 0:00:48]} 60. Kd2 {[%emt 0:00:58]} Qd4+ {[%emt 0:00:12]} 61. Ke2 {[%emt 0:00:09]} Qe4+ {[%emt 0:00:27]} 62. Kd2 {[%emt 0:00:05]} Qd3+ {[%emt 0:00:06]} 63. Ke1 {[%emt 0:00:04]} Qe3+ {[%emt 0:00:04]} 0-1